bitfinex/quotes_SOLUSD_20250823
["timestamp","ask_amount","ask_price","bid_price","bid_amount"]
[1755912506418,40.54,197.9,197.89,3.76512317]
[1755912507137,40.54,197.9,197.89,8.20090607]
[1755912507524,40.54,197.9,197.89,3.76512317]
[1755912507725,40.54,197.9,197.89,8.20090607]
[1755912508514,40.54,197.9,197.89,4.4357829]
[1755912508722,40.54,197.9,197.89,3.76600275]
[1755912508927,40.54,197.9,197.89,8.20178565]
[1755912510620,39.86,197.9,197.89,3.76600275]
[1755912510820,39.86,197.9,197.89,8.20178565]
[1755912511320,40.58,197.9,197.89,8.20178565]
[1755912512330,0.78,197.9,197.89,8.20178565]
[1755912512534,40.58,197.9,197.89,8.20178565]
[1755912513333,40.58,197.9,197.89,3.76600275]
[1755912513533,40.58,197.9,197.89,8.20178565]
[1755912513717,40.58,197.9,197.89,3.76600275]
[1755912513920,40.58,197.9,197.89,8.20178565]
[1755912514849,40.58,197.9,197.89,4.4357829]
[1755912515029,40.58,197.9,197.89,8.20538143]
[1755912515973,40.58,197.9,197.89,3.76959853]
[1755912516141,40.58,197.9,197.89,8.20538143]
[1755912516762,40.58,197.9,197.89,3.76959853]
[1755912516968,40.58,197.9,197.89,8.20538143]
[1755912517342,40.58,197.9,197.89,3.76959853]
[1755912517870,40.58,197.9,197.89,3.77456384]
[1755912518257,0.78,197.9,197.89,3.77456384]
[1755912518455,40.56,197.9,197.89,3.77456384]
[1755912518659,40.56,197.9,197.89,8.21034674]
[1755912518660,39.84,197.9,197.89,8.21034674]
[1755912519444,40.56,197.9,197.89,8.21034674]
[1755912519763,40.56,197.9,197.89,8.24034674]
[1755912520757,40.56,197.9,197.89,3.80456384]
[1755912520951,0.06,197.9,197.89,8.90034674]
[1755912521965,0.06,197.9,197.89,9.18466988]
[1755912523455,0.06,197.9,197.89,35.18466988]
[1755912523855,0.06,197.9,197.89,31.41010604]
[1755912524066,0.06,197.9,197.89,35.19074041]
[1755912526570,0.06,197.9,197.89,30.09495751]
[1755912526948,0.06,197.9,197.89,30.75495751]
[1755912528076,0.06,197.9,197.89,30.09495751]
[1755912528675,0.06,197.9,197.89,30.75495751]
[1755912530369,0.06,197.9,197.89,30.09495751]
[1755912531491,0.06,197.9,197.89,30.75495751]
[1755912532987,0.06,197.9,197.89,26.31432314]
[1755912533158,0.06,197.9,197.89,30.09935397]
[1755912533553,0.06,197.9,197.89,30.09930708]
[1755912534189,0.78,197.9,197.89,3.81498394]
[1755912534360,0.78,197.9,197.89,8.25076684]
[1755912534687,0.78,197.9,197.89,3.81498394]
[1755912534868,0.78,197.9,197.89,8.25076684]
[1755912536162,0.78,197.9,197.89,8.25148071]
[1755912539104,0.78,197.9,197.89,3.81569781]
[1755912539282,0.78,197.9,197.89,8.25148071]
[1755912539477,0.78,197.9,197.89,3.81569781]
[1755912539667,0.78,197.9,197.89,8.25148071]
[1755912541266,75.15430219,197.87,197.85,0.03]
[1755912541482,75.15430219,197.87,197.86,4.4357829]
[1755912541801,75.15430219,197.87,197.85,0.03]
[1755912541802,0.67,197.87,197.85,0.03]
[1755912542094,40.43,197.86,197.85,0.03]
[1755912542769,50.43,197.86,197.85,0.03]
[1755912543192,39.76,197.86,197.85,0.03]
[1755912543380,50.43,197.86,197.85,4.4657829]
[1755912543581,50.43,197.86,197.85,0.03]
[1755912543807,50.43,197.86,197.85,4.4657829]
[1755912544100,40.43,197.86,197.85,4.4657829]
[1755912544261,0.67,197.86,197.85,4.4657829]
[1755912544466,50.43,197.86,197.85,4.4657829]
[1755912544874,40.43,197.86,197.85,4.4657829]
[1755912545202,39.76,197.86,197.85,4.4657829]
[1755912545795,39.76,197.86,197.85,0.03]
[1755912545997,40.43,197.86,197.85,4.4657829]
[1755912547590,39.76,197.86,197.85,4.4657829]
[1755912547790,40.43,197.86,197.85,4.4657829]
[1755912548197,0.67,197.86,197.85,4.4657829]
[1755912549304,0.67,197.86,197.85,0.03]
[1755912549623,0.67,197.86,197.85,4.4657829]
[1755912551996,39.76,197.87,197.85,4.4657829]
[1755912552208,40.43,197.87,197.86,4.4357829]
[1755912553231,40.43,197.87,197.86,3.78148073]
[1755912553433,40.43,197.87,197.86,8.21726363]
[1755912553917,40.43,197.87,197.86,3.78148073]
[1755912554119,40.43,197.87,197.86,8.21726363]
[1755912556438,50.43,197.87,197.86,3.78148073]
[1755912558729,54.8657829,197.87,197.86,3.78148073]
[1755912558931,50.43,197.87,197.86,3.78148073]
[1755912559127,50.43,197.87,197.83,4.4657829]
[1755912559128,75.18851927,197.84,197.83,4.4657829]
[1755912559334,115.61851927,197.84,197.83,0.03]
[1755912559543,115.61851927,197.84,197.83,4.4657829]
[1755912560423,115.61851927,197.84,197.83,0.03]
[1755912561449,40.43,197.84,197.83,0.03]
[1755912561635,54.8657829,197.84,197.83,0.03]
[1755912561835,0.67,197.84,197.83,4.4657829]
[1755912562064,10.0,197.84,197.83,4.4657829]
[1755912562237,50.43,197.84,197.83,0.03]
[1755912562444,54.8657829,197.84,197.83,0.03]
[1755912562661,68.46137691,197.84,197.83,0.03]
[1755912565569,64.02559401,197.84,197.83,0.03]
[1755912565860,68.46137691,197.84,197.83,0.03]
[1755912567970,78.88,197.8,197.79,0.03]
[1755912568151,49.76,197.8,197.79,0.03]
[1755912568356,54.8857829,197.8,197.79,0.03]
[1755912568852,10.0,197.8,197.79,0.03]
[1755912569164,50.45,197.8,197.79,0.03]
[1755912569555,49.76,197.8,197.79,0.03]
[1755912570062,10.0,197.81,197.79,5.1857829]
[1755912570371,49.76,197.8,197.79,0.75]
[1755912570747,49.76,197.8,197.79,0.03]
[1755912571356,49.76,197.8,197.79,3.69338743]
[1755912571946,39.76,197.8,197.79,4.41338743]
[1755912572151,49.76,197.8,197.79,8.84917033]
[1755912572357,39.76,197.8,197.79,8.84917033]
[1755912572675,10.0,197.85,197.79,4.41338743]
[1755912572979,39.76,197.84,197.8,4.38338743]
[1755912573277,0.69,197.83,197.81,3.66338743]
[1755912573446,39.76,197.82,197.79,0.03]
[1755912573646,39.76,197.82,197.8,3.66330528]
[1755912573890,39.76,197.82,197.81,3.66330528]
[1755912576370,40.45,197.82,197.81,3.66330528]
[1755912576968,39.76,197.82,197.81,3.66330528]
[1755912577167,40.45,197.82,197.81,3.66330528]
[1755912577473,40.45,197.82,197.81,8.10294288]
[1755912577646,39.76,197.82,197.81,8.10294288]
[1755912580573,40.45,197.82,197.81,8.10294288]
[1755912580879,40.45,197.82,197.81,3.66715998]
[1755912581681,39.76,197.82,197.81,3.66715998]
[1755912582689,75.33284002,197.81,197.79,0.03]
[1755912582852,75.33284002,197.8,197.79,0.03]
[1755912583977,115.76284002,197.8,197.79,0.03]
[1755912584186,115.76284002,197.8,197.79,4.4657829]
[1755912585673,115.76284002,197.8,197.79,0.03]
[1755912585886,115.76284002,197.8,197.79,4.4657829]
[1755912588093,40.43,197.8,197.79,0.03]
[1755912588274,54.8657829,197.8,197.79,0.03]
[1755912588480,50.43,197.8,197.79,0.03]
[1755912588680,54.8657829,197.8,197.79,0.03]
[1755912591403,68.46137691,197.8,197.79,0.03]
[1755912591777,64.02559401,197.8,197.79,0.03]
[1755912592107,68.46137691,197.8,197.79,0.03]
[1755912592876,64.02559401,197.8,197.79,0.03]
[1755912593377,68.46137691,197.8,197.79,0.03]
[1755912595386,78.91,197.77,197.76,0.03]
[1755912595586,39.74,197.77,197.76,0.03]
[1755912595889,50.43,197.77,197.76,0.03]
[1755912598910,10.0,197.77,197.76,8.78031352]
[1755912599080,39.74,197.77,197.76,8.78031352]
[1755912600008,49.74,197.77,197.76,8.78031352]
[1755912600189,39.74,197.77,197.76,8.78031352]
[1755912600408,74.62546938,197.75,197.72,26.0]
[1755912600708,74.62546938,197.74,197.72,26.0]
[1755912601908,74.62546938,197.74,197.73,4.4357829]
[1755912602290,134.46,197.81,197.76,26.0]
[1755912602490,49.74,197.8,197.76,26.0]
[1755912602692,50.4,197.8,197.76,26.0]
[1755912603092,49.74,197.8,197.76,26.0]
[1755912603416,0.66,197.79,197.78,4.4357829]
[1755912604319,2.6,197.79,197.78,4.4357829]
[1755912605318,0.06,197.81,197.8,26.0]
[1755912605623,0.06,197.81,197.8,30.4357829]
[1755912605823,0.06,197.81,197.8,4.4357829]
[1755912606527,0.06,197.81,197.8,6.4595119]
[1755912606905,0.06,197.81,197.8,2.023729]
[1755912607210,0.06,197.83,197.81,26.28432314]
[1755912607413,0.06,197.83,197.82,4.72010604]
[1755912607615,0.06,197.84,197.83,0.28432314]
[1755912607921,0.06,197.84,197.83,4.72010604]
[1755912608116,0.06,197.86,197.85,0.28432314]
[1755912608315,0.06,197.86,197.85,9.15588894]
[1755912608620,0.06,197.89,197.88,30.4357829]
[1755912609921,0.06,197.89,197.88,32.4585909]
[1755912611502,0.06,197.91,197.89,0.28432314]
[1755912611722,0.06,197.92,197.91,26.0]
[1755912611903,0.06,197.94,197.91,30.72010604]
[1755912612109,0.06,197.94,197.93,4.4357829]
[1755912612526,0.06,197.94,197.93,7.96457446]
[1755912612830,0.06,197.94,197.93,7.96465799]
[1755912616933,0.06,197.96,197.95,39.87991715]
[1755912617230,0.06,197.98,197.95,52.28035804]
[1755912617530,0.06,198.0,197.99,26.0]
[1755912617736,0.06,198.0,197.99,38.40044089]
[1755912618209,0.06,198.0,197.99,34.8715658]
[1755912618402,0.72,198.0,197.96,0.28432314]
[1755912618604,3.32,198.0,197.95,2.021683]
[1755912618837,2.66,198.0,197.98,26.0]
[1755912619142,0.66,197.99,197.98,26.0]
[1755912619620,0.66,197.99,197.98,4.4357829]
[1755912619814,2.66,198.0,197.98,4.4357829]
[1755912620047,2.66,198.0,197.99,4.4357829]
[1755912620254,0.06,198.0,197.99,4.4357829]
[1755912621219,0.06,198.0,197.96,0.28432314]
[1755912621414,0.66,197.99,197.98,26.0]
[1755912621623,0.66,197.99,197.98,4.4357829]
[1755912622438,0.06,198.0,197.98,4.4357829]
[1755912622753,0.06,198.0,197.99,4.4357829]
[1755912624432,0.06,198.0,197.96,0.28432314]
[1755912624630,0.06,198.0,197.99,30.4357829]
[1755912625224,0.72,198.0,197.99,4.4357829]
[1755912625622,0.06,198.0,197.96,0.28432314]
[1755912625930,0.06,198.0,197.99,4.4357829]
[1755912626726,0.06,198.0,197.99,8.8715658]
[1755912626906,0.06,198.0,197.99,12.73669892]
[1755912627107,0.06,198.01,198.0,0.28432314]
[1755912627319,0.06,198.01,198.0,8.30091602]
[1755912627931,0.06,198.01,198.0,10.32229202]
[1755912628327,0.06,198.03,198.0,10.32229202]
[1755912628328,0.06,198.03,198.02,30.72010604]
[1755912628647,0.06,198.03,198.02,34.30091602]
[1755912630128,0.06,198.07,198.03,0.28432314]
[1755912630455,0.72,198.06,198.04,3.58080998]
[1755912630659,0.72,198.05,198.03,26.0]
[1755912630950,10.06,198.07,198.04,10.0]
[1755912631121,10.06,198.07,198.01,0.28432314]
[1755912631558,0.72,198.06,198.01,15.44464314]
[1755912631731,0.72,198.06,198.05,4.4357829]
[1755912631935,0.06,198.07,198.01,15.44464314]
[1755912632125,10.06,198.07,198.06,4.4357829]
[1755912632645,0.78,198.07,198.06,4.4357829]
[1755912634424,0.78,198.07,198.03,10.0]
[1755912634636,0.06,198.07,198.06,4.4357829]
[1755912635455,0.06,198.07,198.06,34.28691042]
[1755912635946,0.06,198.07,198.06,49.44263642]
[1755912636538,0.06,198.09,198.08,4.72010604]
[1755912636724,0.06,198.09,198.08,8.28691042]
[1755912639738,0.06,198.09,198.08,8.28444864]
[1755912640740,0.06,198.09,198.08,29.84866574]
[1755912640938,0.06,198.09,198.08,34.28444864]
[1755912641238,10.0,198.18,198.08,49.43711164]
[1755912641559,0.72,198.12,198.11,26.0]
[1755912641761,0.72,198.12,198.11,29.5643426]
[1755912642259,10.72,198.14,198.11,29.5643426]
[1755912642441,0.72,198.13,198.12,3.5643426]
[1755912642636,0.72,198.13,198.12,8.0001255]
[1755912642844,0.72,198.13,198.12,8.00266346]
[1755912643257,0.72,198.13,198.12,3.56688056]
[1755912643559,0.72,198.13,198.12,8.00266346]
[1755912644131,10.0,198.14,198.12,8.00266346]
[1755912644347,10.0,198.14,198.11,26.0]
[1755912644348,0.72,198.13,198.11,26.0]
[1755912644553,10.0,198.11,198.0,0.03]
[1755912644857,0.72,198.1,198.05,3.57142926]
[1755912645028,0.72,198.09,198.06,3.71359083]
[1755912645226,0.72,198.08,198.07,29.57142926]
[1755912645431,0.72,198.08,198.07,34.00721216]
[1755912645652,0.72,198.1,198.07,30.4357829]
[1755912645952,0.72,198.1,198.08,3.57140953]
[1755912646155,0.72,198.1,198.09,4.4357829]
[1755912647336,0.72,198.1,198.09,8.01314066]
[1755912648755,0.72,198.1,198.09,3.57735776]
[1755912649054,10.72,198.1,198.09,4.4357829]
[1755912649266,10.72,198.1,198.09,3.58144946]
[1755912649674,28.75137691,198.1,198.09,2.86144946]
[1755912649835,28.75137691,198.1,198.04,0.03]
[1755912649836,10.0,198.06,198.04,0.03]
[1755912650166,10.0,198.06,198.04,4.4657829]
[1755912650331,10.72,198.05,198.04,4.4657829]
[1755912650532,10.72,198.05,198.04,0.03]
[1755912652975,28.75137691,198.05,198.04,0.03]
[1755912654799,31.35137691,198.05,198.04,0.03]
[1755912657185,26.91559401,198.05,198.04,0.03]
[1755912657487,66.55559401,198.05,198.04,0.03]
[1755912657793,12.6,198.05,198.04,0.03]
[1755912658009,52.24,198.05,198.04,0.03]
[1755912658296,42.24,198.05,198.04,0.03]
[1755912658503,52.24,198.05,198.04,0.03]
[1755912658717,52.24,198.05,198.04,4.4657829]
[1755912660275,42.24,198.05,198.04,4.4657829]
[1755912661070,52.24,198.05,198.04,4.4657829]
[1755912661670,2.6,198.05,198.04,8.76788696]
[1755912661989,0.06,198.1,198.07,26.0]
[1755912662199,0.06,198.1,198.09,4.4357829]
[1755912662499,0.06,198.1,198.09,8.01788696]
[1755912663773,10.06,198.1,198.09,8.01788696]
[1755912664896,10.06,198.1,198.09,3.58210406]
[1755912665113,10.06,198.1,198.09,8.01788696]
[1755912665401,0.06,198.1,198.09,8.01788696]
[1755912665704,0.06,198.1,198.09,8.73788696]
[1755912665921,0.06,198.1,198.09,35.0222101]
[1755912666344,0.06,198.1,198.09,9.0222101]
[1755912666500,0.06,198.1,198.09,8.01788696]
[1755912666692,0.06,198.1,198.09,3.58210406]
[1755912666897,0.06,198.1,198.09,8.01788696]
[1755912667106,0.06,198.1,198.09,8.01838308]
[1755912668219,0.06,198.1,198.09,3.58260018]
[1755912668413,0.06,198.1,198.09,8.01838308]
[1755912669031,0.06,198.1,198.09,8.73838308]
[1755912669725,0.06,198.1,198.09,9.02270622]
[1755912670928,0.06,198.1,198.09,19.08270622]
[1755912673605,0.06,198.12,198.09,13.64260018]
[1755912673804,10.0,198.11,198.1,3.58260018]
[1755912674212,10.67,198.11,198.1,3.58260018]
[1755912674430,10.67,198.11,198.1,3.58489914]
[1755912676234,10.67,198.11,198.1,3.58474723]
[1755912676413,10.0,198.08,198.07,4.4657829]
[1755912676612,10.67,198.08,198.07,8.05078954]
[1755912677146,10.0,198.1,198.07,8.05078954]
[1755912677331,10.0,198.1,198.09,4.4357829]
[1755912677635,10.67,198.1,198.09,3.58500664]
[1755912682231,10.67,198.1,198.07,0.03]
[1755912682441,0.67,198.09,198.08,3.57336489]
[1755912682642,10.67,198.09,198.08,3.57336489]
[1755912685349,10.0,198.09,198.08,3.57363283]
[1755912685663,10.0,198.09,198.08,3.57405013]
[1755912685827,10.67,198.09,198.08,3.57405013]
[1755912686139,10.0,198.09,198.08,3.57405013]
[1755912686826,10.0,198.1,198.08,3.57405013]
[1755912687039,10.0,198.1,198.09,3.57405013]
[1755912687236,134.4,198.11,198.09,8.00983303]
[1755912687549,144.4,198.11,198.1,3.57405013]
[1755912687849,184.02,198.11,198.1,3.57405013]
[1755912688641,174.02,198.11,198.1,3.57405013]
[1755912688853,184.02,198.11,198.1,3.57405013]
[1755912689752,184.02,198.11,198.1,8.00983303]
[1755912690946,184.02,198.11,198.1,3.57405013]
[1755912691262,184.71,198.11,198.1,3.57405013]
[1755912692027,184.02,198.11,198.1,3.57405013]
[1755912692223,39.62,198.11,198.1,3.57405013]
[1755912692545,49.62,198.11,198.1,3.57405013]
[1755912693965,39.62,198.11,198.1,3.57405013]
[1755912694164,49.62,198.11,198.1,3.57584053]
[1755912694762,49.62,198.11,198.1,3.57574422]
[1755912695374,0.06,198.12,198.1,3.57574422]
[1755912695570,79.06,198.12,198.11,8.73150347]
[1755912695754,0.06,198.12,198.11,9.01582661]
[1755912695970,0.06,198.12,198.11,8.73150347]
[1755912696179,0.06,198.12,198.11,8.01150347]
[1755912696384,0.06,198.12,198.11,3.57572057]
[1755912696685,0.06,198.12,198.11,8.01150347]
[1755912696982,0.06,198.12,198.11,34.01150347]
[1755912697192,0.75,198.12,198.11,29.57572057]
[1755912697384,0.06,198.12,198.11,34.01150347]
[1755912700395,39.66,198.12,198.11,34.01150347]
[1755912702769,40.35,198.12,198.11,3.57572057]
[1755912702973,50.35,198.12,198.11,3.57572057]
[1755912703170,50.35,198.12,198.11,3.58383778]
[1755912703598,54.7857829,198.12,198.11,3.58383778]
[1755912703890,68.38137691,198.12,198.11,3.58383778]
[1755912704400,68.66570005,198.12,198.11,3.58383778]
[1755912704692,13.59559401,198.11,198.1,0.03]
[1755912704869,28.72137691,198.11,198.1,3.61573539]
[1755912707478,28.72137691,198.11,198.1,3.61551454]
[1755912708496,28.72137691,198.11,198.08,0.03]
[1755912708497,49.87991715,198.09,198.08,0.03]
[1755912708701,93.91570005,198.09,198.08,0.03]
[1755912708905,94.60570005,198.09,198.08,0.03]
[1755912712134,23.87991715,198.07,198.06,0.03]
[1755912712302,39.59559401,198.05,198.0,0.03]
[1755912712620,23.59559401,198.03,198.0,0.03]
[1755912712797,67.63137691,198.03,198.0,0.03]
[1755912713126,68.32137691,198.03,198.0,0.03]
[1755912714118,68.32137691,198.03,197.91,0.03]
[1755912714119,10.0,197.92,197.91,0.03]
[1755912714414,54.0557829,197.92,197.91,3.62423251]
[1755912715198,49.62,197.92,197.91,3.62423251]
[1755912717410,49.62,197.92,197.91,0.03]
[1755912718800,54.0557829,197.92,197.91,0.03]
[1755912721691,54.0557829,197.92,197.87,0.2]
[1755912721692,10.0,197.88,197.87,0.2]
[1755912721895,54.0557829,197.88,197.87,3.78226683]
[1755912722195,54.7457829,197.88,197.87,3.78226683]
[1755912722400,68.62570005,197.88,197.87,0.2]
[1755912727711,78.6,197.8,197.79,0.68]
[1755912727901,44.0757829,197.8,197.79,0.68]
[1755912728100,54.0757829,197.8,197.79,0.68]
[1755912731224,49.64,197.8,197.75,4.4357829]
[1755912731425,79.0,197.79,197.77,0.68]
[1755912731634,10.0,197.77,197.75,4.4357829]
[1755912732325,10.0,197.77,197.76,0.68]
[1755912734214,10.0,197.74,197.73,0.03]
[1755912734407,54.0757829,197.74,197.73,0.03]
[1755912735717,49.64,197.74,197.73,0.03]
[1755912736034,54.0757829,197.74,197.73,0.03]
[1755912736828,49.64,197.74,197.73,0.03]
[1755912737026,54.0757829,197.74,197.73,0.03]
[1755912737245,49.64,197.74,197.73,0.03]
[1755912737406,54.0757829,197.74,197.73,0.03]
[1755912739735,54.7657829,197.74,197.73,0.03]
[1755912740330,49.64,197.74,197.73,0.03]
[1755912740535,54.0757829,197.74,197.73,0.03]
[1755912743446,54.7657829,197.74,197.73,0.03]
[1755912743943,68.36137691,197.74,197.73,0.03]
[1755912744446,68.36137691,197.74,197.71,0.03]
[1755912744447,10.0,197.72,197.71,0.03]
[1755912744646,54.0957829,197.72,197.71,0.03]
[1755912744847,54.7857829,197.72,197.71,0.03]
[1755912747266,63.94559401,197.72,197.71,0.03]
[1755912747555,66.25569515,197.72,197.71,0.03]
[1755912748659,63.94559401,197.72,197.71,0.03]
[1755912748859,68.38137691,197.72,197.71,0.03]
[1755912751865,14.4357829,197.72,197.71,0.03]
[1755912752047,54.0957829,197.72,197.71,0.03]
[1755912752229,49.66,197.72,197.71,0.03]
[1755912752436,49.66,197.72,197.71,0.72]
[1755912752656,54.0957829,197.72,197.71,0.03]
[1755912754141,49.66,197.72,197.71,0.72]
[1755912754542,54.0957829,197.72,197.71,0.03]
[1755912755343,54.0957829,197.72,197.71,0.72]
[1755912755542,49.66,197.72,197.71,0.72]
[1755912756256,49.66,197.72,197.71,0.03]
[1755912756983,49.66,197.72,197.71,4.26878343]
[1755912757154,49.66,197.72,197.71,3.57878343]
[1755912757343,54.0957829,197.72,197.71,0.03]
[1755912757546,10.0,197.72,197.71,3.58136017]
[1755912757838,49.66,197.72,197.71,4.2712327]
[1755912758039,54.0957829,197.72,197.71,0.03]
[1755912758249,49.66,197.72,197.71,0.03]
[1755912758458,49.66,197.72,197.71,3.58371185]
[1755912758873,49.66,197.72,197.71,4.27371185]
[1755912759366,49.66,197.72,197.71,3.58371185]
[1755912760058,10.0,197.74,197.71,8.70949475]
[1755912760265,49.66,197.73,197.72,8.67949475]
[1755912760946,10.0,197.76,197.72,8.67949475]
[1755912761168,10.0,197.76,197.75,4.4357829]
[1755912761369,49.66,197.76,197.75,7.98949475]
[1755912762067,49.66,197.76,197.75,3.55371185]
[1755912762548,49.66,197.76,197.72,4.4357829]
[1755912762749,10.0,197.74,197.73,3.56457606]
[1755912762950,49.66,197.74,197.73,3.56457606]
[1755912765558,49.66,197.74,197.73,3.572223]
[1755912765953,49.66,197.74,197.71,4.4657829]
[1755912766167,10.0,197.73,197.72,3.57222455]
[1755912766772,10.65,197.73,197.72,3.57222455]
[1755912767307,10.0,197.73,197.72,3.57222455]
[1755912767746,10.0,197.72,197.71,4.4657829]
[1755912767948,10.0,197.72,197.71,8.73173919]
[1755912768259,10.0,197.72,197.71,8.04173919]
[1755912768779,10.0,197.72,197.71,8.04252545]
[1755912769145,49.66,197.73,197.71,8.73252545]
[1755912769372,49.66,197.73,197.72,8.01252545]
[1755912769754,49.66,197.73,197.72,3.57674255]
[1755912771684,49.66,197.73,197.72,7.98142391]
[1755912771883,49.66,197.73,197.72,8.67142391]
[1755912772380,49.66,197.73,197.72,5.1257829]
[1755912772585,49.66,197.73,197.72,8.67230077]
[1755912773193,39.66,197.73,197.72,8.67230077]
[1755912773575,39.66,197.73,197.72,4.23651787]
[1755912773785,39.66,197.73,197.72,34.67230077]
[1755912773983,10.0,197.75,197.74,26.0]
[1755912774295,49.64,197.75,197.74,3.54651787]
[1755912774503,50.29,197.75,197.74,29.54651787]
[1755912774711,10.0,197.72,197.71,26.03]
[1755912775006,49.64,197.72,197.71,29.57848518]
[1755912775181,49.64,197.72,197.71,34.01426808]
[1755912775384,49.64,197.72,197.71,8.01426808]
[1755912775776,49.64,197.72,197.71,3.57848518]
[1755912775993,50.29,197.72,197.71,3.57848518]
[1755912777001,54.7257829,197.72,197.71,3.57848518]
[1755912777577,54.7257829,197.72,197.71,0.03]
[1755912779004,68.32137691,197.72,197.71,0.03]
[1755912779404,70.92137691,197.72,197.71,0.03]
[1755912780195,17.6857829,197.72,197.71,0.03]
[1755912780387,52.91,197.72,197.71,0.03]
[1755912780586,57.3457829,197.72,197.71,0.03]
[1755912780787,70.94137691,197.72,197.71,0.03]
[1755912784815,70.94137691,197.72,197.59,5.0957829]
[1755912784816,10.0,197.62,197.59,5.0957829]
[1755912784986,39.64,197.61,197.6,3.55445083]
[1755912785184,39.64,197.61,197.6,4.21445083]
[1755912785913,49.64,197.61,197.6,3.55386691]
[1755912786116,49.64,197.61,197.6,29.55386691]
[1755912786500,49.64,197.61,197.6,3.55386691]
[1755912787512,10.0,197.57,197.56,5.0957829]
[1755912787690,49.64,197.57,197.56,8.64785165]
[1755912787887,50.31,197.57,197.56,3.55206875]
[1755912788146,49.64,197.57,197.53,0.66]
[1755912788436,10.0,197.55,197.54,3.55314371]
[1755912788597,49.64,197.55,197.54,3.55314371]
[1755912788992,10.0,197.57,197.54,7.48892661]
[1755912789214,49.66,197.56,197.52,0.14216157]
[1755912789396,10.0,197.54,197.52,0.66]
[1755912789597,10.0,197.54,197.51,0.1]
[1755912789598,49.66,197.54,197.53,26.66]
[1755912789828,39.66,197.54,197.53,31.0957829]
[1755912791093,10.0,197.58,197.53,31.0957829]
[1755912791295,10.0,197.56,197.55,4.4357829]
[1755912791495,49.66,197.56,197.55,5.0957829]
[1755912791789,39.66,197.56,197.55,5.0957829]
[1755912791999,49.66,197.56,197.55,5.0957829]
[1755912792512,39.66,197.56,197.55,5.0957829]
[1755912794819,10.0,197.58,197.55,5.0957829]
[1755912795006,49.66,197.57,197.56,4.4357829]
[1755912795201,10.0,197.56,197.54,26.0]
[1755912795416,39.66,197.55,197.54,26.66]
[1755912795718,39.66,197.55,197.54,31.0957829]
[1755912796504,39.66,197.56,197.54,26.66]
[1755912796699,39.66,197.56,197.55,5.0957829]
[1755912797634,39.66,197.56,197.55,4.4357829]
[1755912797798,39.66,197.56,197.54,26.0]
[1755912798003,39.66,197.56,197.55,4.4357829]
[1755912798217,39.66,197.56,197.54,26.0]
[1755912798528,39.66,197.56,197.55,4.4357829]
[1755912799142,39.66,197.56,197.54,26.0]
[1755912799361,10.67,197.55,197.51,0.1]
[1755912799524,10.0,197.52,197.51,0.1]
[1755912799831,49.98,197.52,197.51,0.1]
[1755912800126,50.65,197.52,197.51,0.1]
[1755912800352,50.65,197.52,197.51,4.5357829]
[1755912800353,39.98,197.52,197.51,4.5357829]
[1755912800648,10.0,197.53,197.51,5.1957829]
[1755912800938,0.67,197.62,197.53,0.28432314]
[1755912801152,49.96,197.61,197.6,4.4357829]